fUST/lending_fUST_20250709
["ID","MTS","AMOUNT","RATE_DAILY","PERIOD"]
[370388449,1751991049595,-886.41,0.00020821,2]
[370388451,1751991049604,-576.38881809,0.00020821,2]
[370388453,1751991049613,-460.0,0.00020821,2]
[370388455,1751991049622,-460.0,0.00020821,2]
[370388457,1751991049632,-1930.55,0.00020821,2]
[370388459,1751991049641,-628.55,0.00020821,2]
[370388461,1751991049650,-460.0,0.00020821,2]
[370388463,1751991049660,-460.0,0.00020821,2]
[370388465,1751991049670,-1204.41,0.00020821,2]
[370388467,1751991049679,-570.12,0.00020821,2]
[370388469,1751991049688,-1609.96,0.00020821,2]
[370388471,1751991049698,-460.0,0.00020821,2]
[370388473,1751991049707,-494.76,0.00020821,2]
[370388475,1751991049716,-460.0,0.00020821,2]
[370388477,1751991049726,-460.0,0.00020821,2]
[370388479,1751991049736,-460.0,0.00020821,2]
[370388481,1751991049746,-478.93430486,0.00020821,2]
[370388483,1751991049756,-460.0,0.00020821,2]
[370388485,1751991049765,-460.0,0.00020821,2]
[370388487,1751991049775,-460.0,0.00020821,2]
[370388489,1751991049784,-460.0,0.00020821,2]
[370388491,1751991049794,-743.22,0.00020821,2]
[370388493,1751991049803,-460.0,0.00020821,2]
[370388495,1751991049812,-1181.82,0.00020821,2]
[370388497,1751991049822,-568.71417457,0.00020821,2]
[370388499,1751991049831,-460.0,0.00020821,2]
[370388501,1751991049841,-460.0,0.00020821,2]
[370388503,1751991049850,-460.0,0.00020821,2]
[370388505,1751991049859,-460.0,0.00020821,2]
[370388507,1751991049869,-1281.64,0.00020821,2]
[370388509,1751991049878,-602.4,0.00020821,2]
[370388511,1751991049887,-663.89,0.00020821,2]
[370388513,1751991049896,-460.0,0.00020821,2]
[370388515,1751991049905,-1194.82,0.00020821,2]
[370388517,1751991049915,-1851.08,0.00020821,2]
[370388519,1751991049924,-1446.29,0.00020821,2]
[370388521,1751991049934,-460.0,0.00020821,2]
[370388523,1751991049943,-460.0,0.00020821,2]
[370388525,1751991049953,-460.0,0.00020821,2]
[370388527,1751991049962,-460.0,0.00020821,2]
[370388529,1751991049971,-460.0,0.00020821,2]
[370388531,1751991049981,-490.97,0.00020821,2]
[370388533,1751991049991,-460.0,0.00020821,2]
[370388536,1751991050000,-740.17,0.00020821,2]
[370388538,1751991050010,-460.0,0.00020821,2]
[370388540,1751991050019,-460.0,0.00020821,2]
[370388542,1751991050028,-460.0,0.00020821,2]
[370388543,1751991050037,-1397.61,0.00020821,2]
[370388545,1751991050047,-531.06,0.00020821,2]
[370388548,1751991050056,-460.0,0.00020821,2]
[370388550,1751991050066,-460.0,0.00020821,2]
[370388552,1751991050075,-500.0,0.00020864,2]
[370388554,1751991050085,-500.0,0.00020895,2]
[370388556,1751991050096,-967.0,0.00020984,2]
[370388558,1751991050105,-2153.0,0.00020984,2]
[370388560,1751991050114,-705.0,0.00020984,2]
[370388562,1751991050123,-407.0,0.00020984,2]
[370388564,1751991050133,-500.0,0.00020988,2]
[370388566,1751991050142,-912.0,0.00021,2]
[370388568,1751991050151,-1000.0,0.00021,2]
[370388570,1751991050160,-500.0,0.0002108,2]
[370388571,1751991050169,-460.0,0.00021095,2]
[370388574,1751991050180,-460.0,0.00021095,2]
[370388576,1751991050189,-460.0,0.00021095,2]
[370388577,1751991050199,-460.0,0.00021095,2]
[370388580,1751991050208,-460.0,0.00021095,2]
[370388582,1751991050218,-460.0,0.00021095,2]
[370388584,1751991050227,-401.2764825,0.00021095,2]
[370388586,1751991050237,-460.0,0.00021095,2]
[370388588,1751991050247,-460.0,0.00021095,2]
[370388589,1751991050256,-460.0,0.00021095,2]
[370388591,1751991050265,-460.0,0.00021095,2]
[370388593,1751991050274,-460.0,0.00021095,2]
[370388595,1751991050284,-460.0,0.00021095,2]
[370388597,1751991050294,-460.0,0.00021095,2]
[370388599,1751991050303,-460.0,0.00021095,2]
[370388601,1751991050313,-460.0,0.00021095,2]
[370388604,1751991050322,-571.78,0.00021095,2]
[370388605,1751991050332,-460.0,0.00021095,2]
[370388608,1751991050345,-460.0,0.00021095,2]
[370388610,1751991050358,-460.0,0.00021095,2]
[370388613,1751991050372,-460.0,0.00021095,2]
[370388615,1751991050384,-460.0,0.00021095,2]
[370388617,1751991050396,-460.0,0.00021095,2]
[370388620,1751991050407,-2180.96,0.00021095,2]
[370388622,1751991050419,-460.0,0.00021095,2]
[370388624,1751991050432,-460.0,0.00021095,2]
[370388626,1751991050443,-578.19,0.00021095,2]
[370388629,1751991050456,-944.08,0.00021095,2]
[370388631,1751991050470,-460.0,0.00021095,2]
[370388633,1751991050484,-886.41,0.00021095,2]
[370388635,1751991050496,-460.0,0.00021095,2]
[370388638,1751991050508,-460.0,0.00021095,2]
[370388640,1751991050520,-1930.55,0.00021095,2]
[370388642,1751991050532,-628.55,0.00021095,2]
[370388644,1751991050546,-460.0,0.00021095,2]
[370388647,1751991050560,-460.0,0.00021095,2]
[370388649,1751991050572,-1204.41,0.00021095,2]
[370388651,1751991050583,-570.12,0.00021095,2]
[370388653,1751991050595,-1609.96,0.00021095,2]
[370388656,1751991050607,-460.0,0.00021095,2]
[370388658,1751991050618,-494.76,0.00021095,2]
[370388660,1751991050629,-460.0,0.00021095,2]
[370388662,1751991050640,-460.0,0.00021095,2]
[370388665,1751991050653,-460.0,0.00021095,2]
[370388667,1751991050665,-460.0,0.00021095,2]
[370388669,1751991050676,-460.0,0.00021095,2]
[370388671,1751991050688,-460.0,0.00021095,2]
[370388673,1751991050699,-220.9149901,0.00021095,2]
[370388676,1751991050708,-743.22,0.00021095,2]
[370388678,1751991050722,-460.0,0.00021095,2]
[370388680,1751991050734,-1181.82,0.00021095,2]
[370388682,1751991050745,-460.0,0.00021095,2]
[370388685,1751991050756,-460.0,0.00021095,2]
[370388687,1751991050769,-460.0,0.00021095,2]
[370388689,1751991050781,-460.0,0.00021095,2]
[370388692,1751991050794,-1281.64,0.00021095,2]
[370388694,1751991050805,-602.4,0.00021095,2]
[370388696,1751991050818,-663.89,0.00021095,2]
[370388698,1751991050830,-460.0,0.00021095,2]
[370388701,1751991050844,-1194.82,0.00021095,2]
[370388703,1751991050856,-1851.08,0.00021095,2]
[370388706,1751991050869,-1446.29,0.00021095,2]
[370388708,1751991050880,-500.0,0.00021095,15]
[370388710,1751991050891,-460.0,0.00021095,2]
[370388712,1751991050901,-460.0,0.00021095,2]
[370388714,1751991050911,-460.0,0.00021095,2]
[370388716,1751991050923,-460.0,0.00021095,2]
[370388718,1751991050935,-460.0,0.00021095,2]
[370388721,1751991050948,-490.97,0.00021095,2]
[370388723,1751991050960,-460.0,0.00021095,2]
[370388725,1751991050972,-740.17,0.00021095,2]
[370388727,1751991050983,-460.0,0.00021095,2]
[370388729,1751991050992,-460.0,0.00021095,2]
[370388732,1751991051003,-460.0,0.00021095,2]
[370388734,1751991051014,-531.06,0.00021095,2]
[370388736,1751991051025,-1397.61,0.00021095,2]
[370388738,1751991051037,-460.0,0.00021095,2]
[370388740,1751991051048,-460.0,0.00021095,2]
[370388743,1751991051059,-150.0,0.00021264,2]
[370388745,1751991051070,-150.0,0.00021264,2]
[370388747,1751991051080,-150.0,0.00021264,2]
[370388749,1751991051091,-500.0,0.00021357,2]
[370388751,1751991051103,-500.0,0.00021357,2]
[370388753,1751991051114,-297.77138809,0.00021357,2]
[370388755,1751991051124,-151.0,0.00021369,2]
[370388758,1751991051135,-151.0,0.00021369,2]
[370388760,1751991051146,-460.0,0.00021369,2]
[370388762,1751991051158,-172.192937,0.00021369,2]
[370388764,1751991051168,-460.0,0.00021369,2]
[370388766,1751991051179,-528.80663143,0.00021369,2]
[370388768,1751991051190,-460.0,0.00021369,2]
[370388771,1751991051202,-460.0,0.00021369,2]
[370388773,1751991051213,-560.0,0.00021369,2]
[370388775,1751991051225,-400.49099119,0.00021369,2]
[370388777,1751991051235,-460.0,0.00021369,2]
[370388779,1751991051247,-460.0,0.00021369,2]
[370388782,1751991051257,-460.0,0.00021369,2]
[370388784,1751991051268,-460.0,0.00021369,2]
[370388786,1751991051279,-460.0,0.00021369,2]
[370388788,1751991051290,-460.0,0.00021369,2]
[370388790,1751991051301,-454.06349419,0.00021369,2]
[370388792,1751991051312,-571.78,0.00021369,2]
[370388795,1751991051323,-460.0,0.00021369,2]
[370388797,1751991051334,-460.0,0.00021369,2]
[370388799,1751991051345,-222.90514011,0.00021369,2]
[370388801,1751991051356,-460.0,0.00021369,2]
[370388803,1751991051367,-2180.96,0.00021369,2]
[370388806,1751991051378,-460.0,0.00021369,2]
[370388808,1751991051389,-578.19,0.00021369,2]
[370388810,1751991051401,-944.08,0.00021369,2]
[370388812,1751991051412,-460.0,0.00021369,2]
[370388814,1751991051423,-886.41,0.00021369,2]
[370388817,1751991051434,-460.0,0.00021369,2]
[370388819,1751991051445,-460.0,0.00021369,2]
[370388821,1751991051456,-1930.55,0.00021369,2]
[370388823,1751991051473,-628.55,0.00021369,2]
[370388825,1751991051485,-1204.41,0.00021369,2]
[370388827,1751991051495,-460.0,0.00021369,2]
[370388830,1751991051507,-570.12,0.00021369,2]
[370388832,1751991051518,-1609.96,0.00021369,2]
[370388834,1751991051529,-460.0,0.00021369,2]
[370388836,1751991051540,-494.76,0.00021369,2]
[370388838,1751991051552,-460.0,0.00021369,2]
[370388840,1751991051563,-460.0,0.00021369,2]
[370388843,1751991051573,-460.0,0.00021369,2]
[370388845,1751991051584,-460.0,0.00021369,2]
[370388847,1751991051596,-460.0,0.00021369,2]
[370388849,1751991051607,-460.0,0.00021369,2]
[370388851,1751991051618,-743.22,0.00021369,2]
[370388854,1751991051629,-460.0,0.00021369,2]
[370388856,1751991051640,-1181.82,0.00021369,2]
[370388858,1751991051651,-460.0,0.00021369,2]
[370388860,1751991051662,-460.0,0.00021369,2]
[370388862,1751991051673,-460.0,0.00021369,2]
[370388864,1751991051684,-460.0,0.00021369,2]
[370388867,1751991051695,-1281.64,0.00021369,2]
[370388869,1751991051706,-602.4,0.00021369,2]
[370388871,1751991051717,-663.89,0.00021369,2]
[370388873,1751991051728,-460.0,0.00021369,2]
[370388875,1751991051739,-1194.82,0.00021369,2]
[370388877,1751991051748,-1851.08,0.00021369,2]
[370388879,1751991051758,-1446.29,0.00021369,2]
[370388881,1751991051767,-460.0,0.00021369,2]
[370388883,1751991051777,-460.0,0.00021369,2]
[370388885,1751991051786,-460.0,0.00021369,2]
[370388887,1751991051795,-460.0,0.00021369,2]
[370388889,1751991051806,-460.0,0.00021369,2]
[370388891,1751991051816,-490.97,0.00021369,2]
[370388893,1751991051826,-460.0,0.00021369,2]
[370388895,1751991051838,-740.17,0.00021369,2]
[370388897,1751991051849,-460.0,0.00021369,2]
[370388899,1751991051858,-460.0,0.00021369,2]
[370388901,1751991051869,-1397.61,0.00021369,2]
[370388903,1751991051879,-531.06,0.00021369,2]
[370388905,1751991051889,-460.0,0.00021369,2]
[370388907,1751991051899,-460.0,0.00021369,2]
[370388909,1751991051908,-154.51746456,0.00021639,2]
[370388911,1751991051918,-460.0,0.00021643,2]
[370388913,1751991051928,-452.00815695,0.00021643,2]
[370388915,1751991051937,-460.0,0.00021643,2]
[370388917,1751991051947,-182.09,0.00021643,2]
[370388919,1751991051956,-460.0,0.00021643,2]
[370388921,1751991051965,-460.0,0.00021643,2]
[370388923,1751991051975,-460.0,0.00021643,2]
[370388925,1751991051984,-460.0,0.00021643,2]
[370388927,1751991051994,-460.0,0.00021643,2]
[370388929,1751991052004,-460.0,0.00021643,2]
[370388931,1751991052013,-571.78,0.00021643,2]
[370388934,1751991052023,-460.0,0.00021643,2]
[370388935,1751991052033,-460.0,0.00021643,2]
[370388937,1751991052043,-460.0,0.00021643,2]
[370388940,1751991052053,-2180.96,0.00021643,2]
[370388941,1751991052065,-460.0,0.00021643,2]
[370388944,1751991052075,-578.19,0.00021643,2]
[370388945,1751991052086,-944.08,0.00021643,2]
[370388948,1751991052098,-460.0,0.00021643,2]
[370388950,1751991052107,-886.41,0.00021643,2]
[370388952,1751991052117,-460.0,0.00021643,2]
[370388953,1751991052127,-460.0,0.00021643,2]
[370388955,1751991052136,-105.65042541,0.00021643,2]
[370388958,1751991052151,-1269.92383453,0.00021643,2]
[370388972,1751991052402,-554.97574006,0.00021643,2]
[370388973,1751991052412,-628.55,0.00021643,2]
[370388974,1751991052422,-1204.41,0.00021643,2]
[370388975,1751991052431,-460.0,0.00021643,2]
[370388976,1751991052441,-570.12,0.00021643,2]
[370388977,1751991052450,-1609.96,0.00021643,2]
[370388978,1751991052460,-460.0,0.00021643,2]
[370388979,1751991052470,-494.76,0.00021643,2]
[370388980,1751991052481,-460.0,0.00021643,2]
[370388981,1751991052490,-460.0,0.00021643,2]
[370388982,1751991052499,-460.0,0.00021643,2]
[370388984,1751991052508,-460.0,0.00021643,2]
[370388986,1751991052518,-460.0,0.00021643,2]
[370388988,1751991052527,-460.0,0.00021643,2]
[370388989,1751991052536,-743.22,0.00021643,2]
[370388991,1751991052545,-460.0,0.00021643,2]
[370388993,1751991052555,-1181.82,0.00021643,2]
[370388995,1751991052564,-287.54594586,0.00021643,2]
[370389015,1751991052744,-172.45405414,0.00021643,2]
[370389017,1751991052754,-460.0,0.00021643,2]
[370389019,1751991052763,-460.0,0.00021643,2]
[370389021,1751991052773,-460.0,0.00021643,2]
[370389023,1751991052781,-1281.64,0.00021643,2]
[370389025,1751991052791,-602.4,0.00021643,2]
[370389027,1751991052801,-663.89,0.00021643,2]
[370389029,1751991052811,-460.0,0.00021643,2]
[370389031,1751991052821,-1194.82,0.00021643,2]
[370389033,1751991052830,-1851.08,0.00021643,2]
[370389035,1751991052840,-287.85286679,0.00021643,16]
[370389037,1751991052852,-1446.29,0.00021643,2]
[370389039,1751991052862,-460.0,0.00021643,2]
[370389041,1751991052871,-460.0,0.00021643,2]
[370389043,1751991052881,-460.0,0.00021643,2]
[370389045,1751991052890,-460.0,0.00021643,2]
[370389047,1751991052900,-490.97,0.00021643,2]
[370389049,1751991052910,-460.0,0.00021643,2]
[370389051,1751991052920,-740.17,0.00021643,2]
[370389053,1751991052929,-460.0,0.00021643,2]
[370389055,1751991052939,-460.0,0.00021643,2]
[370389057,1751991052948,-1397.61,0.00021643,2]
[370389059,1751991052958,-375.50011168,0.00021643,2]
[370389061,1751991052969,-155.55988832,0.00021643,2]
[370389063,1751991052978,-96.19624082,0.00021643,2]
[370389065,1751991052991,-363.80375918,0.00021643,2]
[370389067,1751991053000,-207.4,0.00021677,2]
[370389069,1751991053010,-567.61260089,0.00021692,2]
[370389071,1751991053022,-2303.58339911,0.00021692,2]
[370389073,1751991053031,-394.46845106,0.0002175,2]
[370389075,1751991053041,-151.0,0.000218,4]
[370389077,1751991053051,-500.0,0.00021894,2]
[370389079,1751991053060,-500.0,0.00021903,2]
[370389081,1751991053070,-500.63262251,0.00021903,2]
[370389083,1751991053079,-501.76611946,0.00021905,2]
[370389085,1751991053089,-460.0,0.00021917,2]
[370389087,1751991053101,-460.0,0.00021917,2]
[370389089,1751991053111,-460.0,0.00021917,2]
[370389091,1751991053122,-460.0,0.00021917,2]
[370389093,1751991053132,-460.0,0.00021917,2]
[370389095,1751991053141,-460.0,0.00021917,2]
[370389097,1751991053150,-460.0,0.00021917,2]
[370389099,1751991053160,-460.0,0.00021917,2]
[370389101,1751991053169,-571.78,0.00021917,2]
[370389103,1751991053178,-460.0,0.00021917,2]
[370389105,1751991053188,-460.0,0.00021917,2]
[370389107,1751991053199,-145.32587995,0.00021917,2]
[370390216,1751991074433,168.046,0.00027397,120]
[370390218,1751991129544,296.142738,0.00013699,2]
[370390221,1751991697877,24900.0,0.00017509,2]
[370390823,1751991901515,-396.14836458,0.000184,2]
[370390824,1751991901540,-173.13,0.00018458,3]
[370390825,1751991901566,-519.43,0.00018458,3]
[370390826,1751991901589,-1200.0,0.00018466,2]
[370390827,1751991901613,-300.0,0.00018466,2]
[370390828,1751991901645,-8829.39304845,0.00018467,2]
[370390829,1751991901670,-294.91641727,0.00018467,2]
[370390830,1751991901694,-500.0,0.00018467,2]
[370390831,1751991901717,-357.50677998,0.00018467,2]
[370390832,1751991901743,-538.55725306,0.00018467,2]
[370390833,1751991901767,-155.71301942,0.00018467,2]
[370390834,1751991901792,-500.0,0.00018467,2]
[370390835,1751991901816,-243.7198549,0.00018467,2]
[370390836,1751991901840,-376.22830669,0.00018467,2]
[370390837,1751991901864,-500.0,0.00018467,2]
[370390838,1751991901889,-500.0,0.00018467,2]
[370390839,1751991901913,-500.0,0.00018467,2]
[370390840,1751991901936,-587.34928503,0.00018467,2]
[370390841,1751991901960,-500.0,0.00018467,2]
[370390842,1751991901982,-33027.90767062,0.00018468,2]
[370391169,1751992048765,-941.30588486,0.000184,2]
[370391170,1751992048800,-346.26,0.00018458,3]
[370391171,1751992048833,-1133.0,0.00018466,2]
[370391172,1751992048869,-300.0,0.00018467,2]
[370391173,1751992049732,-3303.5828255,0.00018468,2]
[370391174,1751992050029,-10000.0,0.00018468,2]
[370391175,1751992050227,-10000.0,0.00018468,2]
[370391176,1751992050400,-10000.0,0.00018468,2]
[370391177,1751992050611,-10000.0,0.00018468,2]
[370391178,1751992050816,-10000.0,0.00018468,2]
[370391179,1751992051038,-10000.0,0.00018468,2]
[370391180,1751992051196,-10000.0,0.00018468,2]
[370391181,1751992051742,-10000.0,0.00018468,2]
[370391182,1751992051757,-10000.0,0.00018468,2]
[370391183,1751992051785,-10000.0,0.00018468,2]
[370391184,1751992052162,-10000.0,0.00018468,2]
[370391185,1751992052324,-10000.0,0.00018468,2]
[370391186,1751992052446,-10000.0,0.00018468,2]
[370391187,1751992052621,-10000.0,0.00018468,2]
[370391188,1751992052809,-10000.0,0.00018468,2]
[370391189,1751992053010,-10000.0,0.00018468,2]
[370391190,1751992053165,-10000.0,0.00018468,2]
[370391191,1751992053334,-10000.0,0.00018468,2]
[370391192,1751992053538,-10000.0,0.00018468,2]
[370391193,1751992053739,-10000.0,0.00018468,2]
[370391194,1751992053912,-10000.0,0.00018468,2]
[370391195,1751992054100,-10000.0,0.00018468,2]
[370391196,1751992054269,-10000.0,0.00018468,2]
[370391197,1751992054417,-10000.0,0.00018468,2]
[370391198,1751992054680,-10000.0,0.00018468,2]
[370391199,1751992054824,-10000.0,0.00018468,2]
[370391200,1751992054983,-10000.0,0.00018468,2]
[370391201,1751992055190,-10000.0,0.00018468,2]
[370391202,1751992055501,-10000.0,0.00018468,2]
[370391203,1751992055705,-10000.0,0.00018468,2]
[370391204,1751992055928,-10000.0,0.00018468,2]
[370391205,1751992056142,-10000.0,0.00018468,2]
[370391206,1751992056357,-10000.0,0.00018468,2]
[370391207,1751992056635,-3668.50950388,0.00018468,2]
[370391208,1751992056665,-394.46845106,0.000185,2]
[370391217,1751992131079,314.231707,0.00013699,2]
[370391221,1751992179715,179.78425889,0.00017724,2]
[370391222,1751992193975,1380.02812423,0.00018368,2]
[370391223,1751992193997,10000.0,0.00018368,2]
[370391224,1751992194020,10000.0,0.00018368,2]
[370391225,1751992194042,10000.0,0.00018368,2]
[370391226,1751992194064,10000.0,0.00018368,2]
[370391227,1751992194088,10000.0,0.00018368,2]
[370391228,1751992194110,10000.0,0.00018368,2]
[370391229,1751992194134,10000.0,0.00018368,2]
[370391230,1751992194158,10000.0,0.00018368,2]
[370391231,1751992194183,10000.0,0.00018368,2]
[370391232,1751992194207,10000.0,0.00018368,2]
[370391233,1751992194229,10000.0,0.00018368,2]
[370391234,1751992194250,10000.0,0.00018368,2]
[370391235,1751992194272,10000.0,0.00018368,2]
[370391236,1751992194293,10000.0,0.00018368,2]
[370391237,1751992194315,10000.0,0.00018368,2]
[370391238,1751992194337,10000.0,0.00018368,2]
[370391239,1751992194359,10000.0,0.00018368,2]
[370391240,1751992194382,10000.0,0.00018368,2]
[370391241,1751992194404,10000.0,0.00018368,2]
[370391242,1751992194426,10000.0,0.00018368,2]
[370391243,1751992194449,10000.0,0.00018368,2]
[370391244,1751992194470,10000.0,0.00018368,2]
[370391245,1751992194495,10000.0,0.00018368,2]
[370391246,1751992194518,10000.0,0.00018368,2]
[370391247,1751992194540,10000.0,0.00018368,2]
[370391248,1751992194562,10000.0,0.00018368,2]
[370391249,1751992194584,10000.0,0.00018368,2]
[370391250,1751992194606,10000.0,0.00018368,2]
[370391251,1751992194629,10000.0,0.00018368,2]
[370391252,1751992194651,10000.0,0.00018368,2]
[370391253,1751992194672,10000.0,0.00018368,2]
[370391254,1751992194694,10000.0,0.00018368,2]
[370391255,1751992194716,10000.0,0.00018368,2]
[370391256,1751992194738,10000.0,0.00018368,2]
[370391257,1751992194760,10000.0,0.00018368,2]
[370391258,1751992194783,10000.0,0.00018368,2]
[370391259,1751992194807,8619.97187577,0.00018368,2]
[370391287,1751992237932,-150.0,0.000189,2]
[370391288,1751992237942,-496.38,0.00019078,2]
[370391289,1751992237954,-496.96677509,0.00019078,2]
[370391290,1751992237964,-300.0,0.00019177,2]
[370391291,1751992237974,-300.0,0.00019177,2]
[370391292,1751992237985,-191.0,0.00019177,2]
[370391293,1751992237994,-514.87927659,0.00019178,2]
[370391294,1751992238004,-37.02055084,0.00019178,2]
[370391295,1751992238016,-422.97944916,0.00019178,2]
[370391296,1751992238026,-460.0,0.00019178,2]
[370391297,1751992238036,-278.16264924,0.00019178,2]
[370391299,1751992238073,-181.83735076,0.00019178,2]
[370391300,1751992238083,-380.35556904,0.00019178,2]
[370391305,1751992238157,-79.64443096,0.00019178,2]
[370391307,1751992238170,-322.79155818,0.00019178,2]
[370391309,1751992238179,-411.57483433,0.00019178,2]
[370391319,1751992238258,-48.42516567,0.00019178,2]
[370391322,1751992238267,-460.0,0.00019178,2]
[370391325,1751992238275,-399.92418881,0.00019178,2]
[370391326,1751992238287,-60.07581119,0.00019178,2]
[370391327,1751992238296,-460.0,0.00019178,2]
[370391328,1751992238306,-384.40169004,0.00019178,2]
[370391329,1751992238315,-223.71254113,0.00019178,2]
[370391330,1751992238324,-169.75995764,0.00019178,2]
[370391331,1751992238346,-290.24004236,0.00019178,2]
[370391332,1751992238355,-485.05695505,0.00019178,2]
[370391333,1751992238364,-495.92921136,0.00019178,2]
[370391334,1751992238373,-460.0,0.00019178,2]
[370391335,1751992238383,-460.0,0.00019178,2]
[370391336,1751992238391,-589.78741999,0.00019178,2]
[370391337,1751992238400,-328.76327057,0.00019178,2]
[370391338,1751992238410,-460.0,0.00019178,2]
[370391339,1751992238421,-460.0,0.00019178,2]
[370391340,1751992238431,-460.0,0.00019178,2]
[370391341,1751992238440,-460.0,0.00019178,2]
[370391342,1751992238449,-221.64365544,0.00019178,2]
[370391343,1751992238459,-460.0,0.00019178,2]
[370391344,1751992238469,-460.0,0.00019178,2]
[370391345,1751992238478,-460.0,0.00019178,2]
[370391346,1751992238487,-681.56,0.00019178,2]
[370391347,1751992238497,-460.0,0.00019178,2]
[370391348,1751992238506,-460.0,0.00019178,2]
[370391349,1751992238515,-460.0,0.00019178,2]
[370391350,1751992238525,-460.0,0.00019178,2]
[370391351,1751992238534,-460.0,0.00019178,2]
[370391352,1751992238544,-460.0,0.00019178,2]
[370391353,1751992238553,-460.0,0.00019178,2]
[370391354,1751992238563,-460.0,0.00019178,2]
[370391355,1751992238572,-460.0,0.00019178,2]
[370391356,1751992238581,-460.0,0.00019178,2]
[370391357,1751992238590,-428.68,0.00019178,2]
[370391358,1751992238599,-460.0,0.00019178,2]
[370391360,1751992238609,-460.0,0.00019178,2]
[370391362,1751992238618,-460.0,0.00019178,2]
[370391364,1751992238628,-461.07000061,0.00019178,2]
[370391366,1751992238637,-460.0,0.00019178,2]
[370391368,1751992238646,-460.0,0.00019178,2]
[370391370,1751992238655,-460.0,0.00019178,2]
[370391372,1751992238665,-514.09306818,0.00019178,2]
[370391374,1751992238675,-460.0,0.00019178,2]
[370391376,1751992238684,-491.42533964,0.00019178,2]
[370391378,1751992238694,-460.0,0.00019178,2]
[370391380,1751992238703,-460.0,0.00019178,2]
[370391382,1751992238712,-460.0,0.00019178,2]
[370391384,1751992238722,-460.0,0.00019178,2]
[370391386,1751992238731,-460.0,0.00019178,2]
[370391387,1751992238739,-500.0,0.00019178,2]
[370391388,1751992238749,-500.0,0.00019178,2]
[370391389,1751992238758,-500.0,0.00019178,2]
[370391390,1751992238767,-460.0,0.00019178,2]
[370391391,1751992238777,-460.0,0.00019178,2]
[370391392,1751992238787,-467.80571061,0.00019178,2]
[370391393,1751992238796,-1434.78,0.00019178,2]
[370391394,1751992238805,-460.0,0.00019178,2]
[370391395,1751992238816,-460.0,0.00019178,2]
[370391396,1751992238828,-460.0,0.00019178,2]
[370391397,1751992238837,-460.0,0.00019178,2]
[370391398,1751992238847,-460.0,0.00019178,2]
[370391399,1751992238857,-460.0,0.00019178,2]
[370391400,1751992238866,-540.34683422,0.00019178,2]
[370391401,1751992238876,-460.0,0.00019178,2]
[370391402,1751992238886,-460.0,0.00019178,2]
[370391403,1751992238896,-460.0,0.00019178,2]
[370391404,1751992238906,-460.0,0.00019178,2]
[370391405,1751992238916,-460.0,0.00019178,2]
[370391406,1751992238926,-460.0,0.00019178,2]
[370391407,1751992238935,-460.0,0.00019178,2]
[370391408,1751992238945,-528.72074314,0.00019178,2]
[370391409,1751992238954,-1457.81,0.00019178,2]
[370391410,1751992238963,-460.0,0.00019178,2]